[Event "Titled Tuesday Blitz February 28 Late 2023"]
[White "Yuan, Qingyu"]
[Black "Skvortsov, Andrei"]
[WhiteFideId "8609772"]
[BlackFideId "24108600"]
[WhiteElo "2359"]
[BlackElo "2259"]
[Result "1-0"]
[Round "10"]
[TimeControl "180+2"]
[Date "2023.02.28"]
[WhiteClock "0:00:18"]
[BlackClock "0:00:02"]

1. e4 {[%clk 0:03:00]}  c5 {[%clk 0:02:59]} 2. Nf3 {[%clk 0:03:01]}  d6 {[%clk 0:03:00]} 3. Bb5+ {[%clk 0:03:01]}  Nd7 {[%clk 0:03:00]} 4. c3 {[%clk 0:03:00]}  Nf6 {[%clk 0:02:59]} 5. Qe2 {[%clk 0:03:01]}  a6 {[%clk 0:02:59]} 6. Ba4 {[%clk 0:03:01]}  b5 {[%clk 0:02:59]} 7. Bc2 {[%clk 0:03:02]}  Bb7 {[%clk 0:02:59]} 8. O-O {[%clk 0:03:00]}  e5 {[%clk 0:02:58]} 9. d4 {[%clk 0:03:00]}  cxd4 {[%clk 0:02:57]} 10. cxd4 {[%clk 0:03:00]}  Be7 {[%clk 0:02:57]} 11. a3 {[%clk 0:02:58]}  O-O {[%clk 0:02:56]} 12. Nc3 {[%clk 0:02:59]}  Qb8 {[%clk 0:02:55]} 13. h3 {[%clk 0:02:57]}  Rc8 {[%clk 0:02:55]} 14. Rd1 {[%clk 0:02:51]}  Bf8 {[%clk 0:02:53]} 15. Be3 {[%clk 0:02:41]}  Bc6 {[%clk 0:02:40]} 16. Bb3 {[%clk 0:02:06]}  Nb6 {[%clk 0:02:32]} 17. dxe5 {[%clk 0:02:01]}  dxe5 {[%clk 0:02:31]} 18. Nxe5 {[%clk 0:01:54]}  Qxe5 {[%clk 0:02:29]} 19. Bxb6 {[%clk 0:01:54]}  Re8 {[%clk 0:01:50]} 20. Bd4 {[%clk 0:01:43]}  Qf4 {[%clk 0:01:40]} 21. Be3 {[%clk 0:01:34]}  Qh4 {[%clk 0:01:38]} 22. f3 {[%clk 0:01:32]}  Nh5 {[%clk 0:01:36]} 23. Qf2 {[%clk 0:01:30]}  Qe7 {[%clk 0:01:14]} 24. Nd5 {[%clk 0:01:29]}  Bxd5 {[%clk 0:01:03]} 25. Bxd5 {[%clk 0:01:29]}  Rac8 {[%clk 0:01:02]} 26. Rac1 {[%clk 0:01:29]}  Nf6 {[%clk 0:01:02]} 27. Bb3 {[%clk 0:01:23]}  Nd7 {[%clk 0:00:53]} 28. Kh1 {[%clk 0:01:09]}  Ne5 {[%clk 0:00:52]} 29. Bd5 {[%clk 0:01:08]}  Qf6 {[%clk 0:00:44]} 30. Bd4 {[%clk 0:00:58]}  Qf4 {[%clk 0:00:31]} 31. Qe3 {[%clk 0:00:48]}  Qg3 {[%clk 0:00:23]} 32. f4 {[%clk 0:00:30]}  Qxe3 {[%clk 0:00:22]} 33. Bxe3 {[%clk 0:00:31]}  Rxc1 {[%clk 0:00:19]} 34. Rxc1 {[%clk 0:00:27]}  Nd3 {[%clk 0:00:19]} 35. Rc7 {[%clk 0:00:23]}  Re7 {[%clk 0:00:06]} 36. Rc8 {[%clk 0:00:23]}  g6 {[%clk 0:00:04]} 37. f5 {[%clk 0:00:22]}  Kg7 {[%clk 0:00:02]} 38. f6+ {[%clk 0:00:19]}  Kxf6 {[%clk 0:00:02]} 39. Rxf8 {[%clk 0:00:18]}  Nxb2 {[%clk 0:00:02]} 40. Bd4+ {[%clk 0:00:19]}  Kg5 {[%clk 0:00:02]} 41. h4+ {[%clk 0:00:18]} 1-0


[Site "https://www.chess.com"]

[Event "Titled Tuesday Blitz February 28 Late 2023"]
[White "Tan, Zhongyi"]
[Black "Saveliev, Alexei"]
[WhiteFideId "8603642"]
[BlackFideId "24128546"]
[WhiteElo "2519"]
[BlackElo "2271"]
[Result "0-1"]
[Round "10"]
[TimeControl "180+2"]
[Date "2023.02.28"]
[WhiteClock "0:00:01"]
[BlackClock "0:00:33"]

1. d4 {[%clk 0:03:00]}  g6 {[%clk 0:03:00]} 2. e4 {[%clk 0:02:59]}  Bg7 {[%clk 0:03:00]} 3. Nc3 {[%clk 0:02:59]}  d6 {[%clk 0:03:01]} 4. f4 {[%clk 0:02:59]}  Nc6 {[%clk 0:03:01]} 5. Be3 {[%clk 0:02:57]}  Nf6 {[%clk 0:03:01]} 6. Be2 {[%clk 0:02:49]}  O-O {[%clk 0:03:01]} 7. d5 {[%clk 0:02:44]}  Nb8 {[%clk 0:02:53]} 8. Nf3 {[%clk 0:02:43]}  c6 {[%clk 0:02:53]} 9. O-O {[%clk 0:02:12]}  cxd5 {[%clk 0:02:50]} 10. exd5 {[%clk 0:02:12]}  Ng4 {[%clk 0:02:48]} 11. Bd4 {[%clk 0:02:11]}  Bxd4+ {[%clk 0:02:43]} 12. Qxd4 {[%clk 0:02:12]}  Qb6 {[%clk 0:02:43]} 13. Qxb6 {[%clk 0:02:08]}  axb6 {[%clk 0:02:44]} 14. Nd4 {[%clk 0:02:06]}  Nf6 {[%clk 0:02:35]} 15. h3 {[%clk 0:01:53]}  Nbd7 {[%clk 0:02:35]} 16. Bf3 {[%clk 0:01:52]}  Nc5 {[%clk 0:02:35]} 17. Rfe1 {[%clk 0:01:51]}  Re8 {[%clk 0:02:33]} 18. Ncb5 {[%clk 0:01:45]}  Kf8 {[%clk 0:02:15]} 19. Nc7 {[%clk 0:01:44]}  Ra4 {[%clk 0:02:15]} 20. Nxe8 {[%clk 0:01:42]}  Rxd4 {[%clk 0:02:11]} 21. Nxf6 {[%clk 0:01:40]}  exf6 {[%clk 0:02:12]} 22. Rad1 {[%clk 0:01:36]}  Rxf4 {[%clk 0:02:11]} 23. Re3 {[%clk 0:01:11]}  Bf5 {[%clk 0:02:10]} 24. Rd2 {[%clk 0:01:11]}  Ra4 {[%clk 0:02:07]} 25. Ra3 {[%clk 0:01:01]}  Rb4 {[%clk 0:01:59]} 26. b3 {[%clk 0:00:56]}  h5 {[%clk 0:01:59]} 27. Ra8+ {[%clk 0:00:55]}  Kg7 {[%clk 0:01:59]} 28. Rd8 {[%clk 0:00:49]}  Nd7 {[%clk 0:01:54]} 29. c4 {[%clk 0:00:37]}  b5 {[%clk 0:01:52]} 30. g4 {[%clk 0:00:34]}  hxg4 {[%clk 0:01:50]} 31. Bxg4 {[%clk 0:00:27]}  Bxg4 {[%clk 0:01:50]} 32. hxg4 {[%clk 0:00:27]}  Ne5 {[%clk 0:01:51]} 33. Kf1 {[%clk 0:00:16]}  bxc4 {[%clk 0:01:49]} 34. Rd4 {[%clk 0:00:08]}  b5 {[%clk 0:01:38]} 35. Rxd6 {[%clk 0:00:08]}  c3 {[%clk 0:01:31]} 36. Rd1 {[%clk 0:00:06]}  Rxg4 {[%clk 0:01:07]} 37. Rd8 {[%clk 0:00:06]}  Rh4 {[%clk 0:01:07]} 38. Ke2 {[%clk 0:00:05]}  Rh2+ {[%clk 0:01:06]} 39. Ke3 {[%clk 0:00:05]}  Rh3+ {[%clk 0:00:59]} 40. Kd4 {[%clk 0:00:04]}  Rh4+ {[%clk 0:00:59]} 41. Kxc3 {[%clk 0:00:03]}  b4+ {[%clk 0:01:00]} 42. Kc2 {[%clk 0:00:02]}  f5 {[%clk 0:00:55]} 43. Rd2 {[%clk 0:00:03]}  Re4 {[%clk 0:00:54]} 44. d6 {[%clk 0:00:03]}  Kf6 {[%clk 0:00:54]} 45. Re8 {[%clk 0:00:02]}  Nd7 {[%clk 0:00:49]} 46. Rxe4 {[%clk 0:00:01]}  fxe4 {[%clk 0:00:50]} 47. Rf2+ {[%clk 0:00:02]}  Ke6 {[%clk 0:00:50]} 48. a3 {[%clk 0:00:02]}  bxa3 {[%clk 0:00:49]} 49. b4 {[%clk 0:00:02]}  f5 {[%clk 0:00:49]} 50. Kb3 {[%clk 0:00:02]}  Kxd6 {[%clk 0:00:49]} 51. Kxa3 {[%clk 0:00:03]}  Ke5 {[%clk 0:00:48]} 52. Rg2 {[%clk 0:00:03]}  e3 {[%clk 0:00:45]} 53. Rxg6 {[%clk 0:00:02]}  e2 {[%clk 0:00:45]} 54. Rg8 {[%clk 0:00:03]}  Nf6 {[%clk 0:00:44]} 55. Rg1 {[%clk 0:00:02]}  f4 {[%clk 0:00:45]} 56. b5 {[%clk 0:00:03]}  f3 {[%clk 0:00:45]} 57. Re1 {[%clk 0:00:03]}  Ke4 {[%clk 0:00:44]} 58. b6 {[%clk 0:00:03]}  Ke3 {[%clk 0:00:42]} 59. b7 {[%clk 0:00:03]}  Nd7 {[%clk 0:00:43]} 60. Rb1 {[%clk 0:00:03]}  f2 {[%clk 0:00:41]} 61. Rb3+ {[%clk 0:00:03]}  Kd2 {[%clk 0:00:41]} 62. Rb5 {[%clk 0:00:02]}  Nb8 {[%clk 0:00:38]} 63. Rd5+ {[%clk 0:00:02]}  Ke1 {[%clk 0:00:39]} 64. Rd8 {[%clk 0:00:02]}  f1=Q {[%clk 0:00:38]} 65. Rxb8 {[%clk 0:00:03]}  Qf3+ {[%clk 0:00:38]} 66. Ka2 {[%clk 0:00:03]}  Qc6 {[%clk 0:00:35]} 67. Kb1 {[%clk 0:00:02]}  Qb6+ {[%clk 0:00:33]} 68. Kc2 {[%clk 0:00:01]}  Qc7+ {[%clk 0:00:33]} 0-1


[Site "https://www.chess.com"]

[Event "Titled Tuesday Blitz February 28 Late 2023"]
[White "Makridis, Dimitrios"]
[Black "Papasimakopoulos, Alexandros"]
[WhiteFideId "25864475"]
[BlackFideId "4244125"]
[WhiteElo "2277"]
[BlackElo "2359"]
[Result "1-0"]
[Round "10"]
[TimeControl "180+2"]
[Date "2023.02.28"]
[WhiteClock "0:00:51"]
[BlackClock "0:00:41"]

1. Nc3 {[%clk 0:03:00]}  d5 {[%clk 0:02:58]} 2. e4 {[%clk 0:03:00]}  d4 {[%clk 0:02:48]} 3. Nce2 {[%clk 0:03:00]}  e5 {[%clk 0:02:48]} 4. Ng3 {[%clk 0:03:01]}  Be6 {[%clk 0:02:44]} 5. Nf3 {[%clk 0:02:55]}  f6 {[%clk 0:02:43]} 6. b3 {[%clk 0:02:55]}  c5 {[%clk 0:02:42]} 7. Bc4 {[%clk 0:02:55]}  Qd7 {[%clk 0:02:39]} 8. d3 {[%clk 0:02:53]}  Nc6 {[%clk 0:02:36]} 9. a4 {[%clk 0:02:50]}  Nge7 {[%clk 0:02:36]} 10. a5 {[%clk 0:02:48]}  Nc8 {[%clk 0:02:34]} 11. O-O {[%clk 0:02:45]}  Nd6 {[%clk 0:02:34]} 12. Bxe6 {[%clk 0:02:44]}  Qxe6 {[%clk 0:02:35]} 13. Nh4 {[%clk 0:02:44]}  Be7 {[%clk 0:02:29]} 14. f4 {[%clk 0:02:44]}  O-O-O {[%clk 0:02:25]} 15. Nhf5 {[%clk 0:02:38]}  g6 {[%clk 0:02:22]} 16. Nxe7+ {[%clk 0:02:36]}  Qxe7 {[%clk 0:02:20]} 17. a6 {[%clk 0:02:36]}  b6 {[%clk 0:02:19]} 18. fxe5 {[%clk 0:02:37]}  fxe5 {[%clk 0:02:19]} 19. Bd2 {[%clk 0:02:32]}  Rhf8 {[%clk 0:02:16]} 20. Qg4+ {[%clk 0:02:30]}  Qd7 {[%clk 0:02:15]} 21. Qh4 {[%clk 0:02:30]}  Nb8 {[%clk 0:02:02]} 22. Nh1 {[%clk 0:02:00]}  Rxf1+ {[%clk 0:01:59]} 23. Rxf1 {[%clk 0:02:00]}  Nxa6 {[%clk 0:01:58]} 24. Nf2 {[%clk 0:02:01]}  Nb4 {[%clk 0:01:57]} 25. Bxb4 {[%clk 0:01:54]}  cxb4 {[%clk 0:01:57]} 26. Ng4 {[%clk 0:01:55]}  Nf7 {[%clk 0:01:38]} 27. h3 {[%clk 0:01:47]}  h5 {[%clk 0:01:37]} 28. Nf6 {[%clk 0:01:43]}  Qe7 {[%clk 0:01:32]} 29. Qg3 {[%clk 0:01:42]}  g5 {[%clk 0:01:27]} 30. Nd5 {[%clk 0:01:42]}  Qd7 {[%clk 0:01:24]} 31. Rf6 {[%clk 0:01:33]}  Kb8 {[%clk 0:01:18]} 32. Qf3 {[%clk 0:01:31]}  Nd6 {[%clk 0:01:18]} 33. Qxh5 {[%clk 0:01:30]}  Qg7 {[%clk 0:01:13]} 34. Rg6 {[%clk 0:01:28]}  Qf7 {[%clk 0:01:05]} 35. Qxg5 {[%clk 0:01:28]}  Qe8 {[%clk 0:01:00]} 36. Rg7 {[%clk 0:01:19]}  Rc8 {[%clk 0:00:56]} 37. Ne7 {[%clk 0:01:14]}  Rc7 {[%clk 0:00:53]} 38. Nf5 {[%clk 0:01:01]}  Rxg7 {[%clk 0:00:52]} 39. Qxg7 {[%clk 0:01:02]}  Nf7 {[%clk 0:00:48]} 40. h4 {[%clk 0:01:00]}  b5 {[%clk 0:00:47]} 41. h5 {[%clk 0:00:59]}  a5 {[%clk 0:00:48]} 42. h6 {[%clk 0:01:00]}  a4 {[%clk 0:00:48]} 43. bxa4 {[%clk 0:00:51]}  bxa4 {[%clk 0:00:48]} 44. h7 {[%clk 0:00:51]}  Nh8 {[%clk 0:00:46]} 45. Nd6 {[%clk 0:00:50]}  Qc6 {[%clk 0:00:41]} 46. Qxh8+ {[%clk 0:00:50]}  Ka7 {[%clk 0:00:42]} 47. Qg7+ {[%clk 0:00:49]}  Kb6 {[%clk 0:00:43]} 48. Nc4+ {[%clk 0:00:49]}  Kb5 {[%clk 0:00:42]} 49. Qxe5+ {[%clk 0:00:49]}  Ka6 {[%clk 0:00:41]} 50. h8=Q {[%clk 0:00:49]}  Qh6 {[%clk 0:00:41]} 51. Qxh6+ {[%clk 0:00:49]}  Kb7 {[%clk 0:00:41]} 52. Qeg7+ {[%clk 0:00:50]}  Ka8 {[%clk 0:00:41]} 53. Qhh8# {[%clk 0:00:51]} 1-0


[Site "https://www.chess.com"]

[Event "Titled Tuesday Blitz February 28 Late 2023"]
[White "Nilsen, Tobias Lang"]
[Black "Aldokhin, Ivan"]
[WhiteFideId "1521624"]
[BlackFideId "24115720"]
[WhiteElo "2195"]
[BlackElo "2322"]
[Result "0-1"]
[Round "10"]
[TimeControl "180+2"]
[Date "2023.02.28"]
[WhiteClock "0:00:20"]
[BlackClock "0:00:13"]

1. e4 {[%clk 0:03:00]}  c5 {[%clk 0:02:57]} 2. Nf3 {[%clk 0:03:01]}  e6 {[%clk 0:02:57]} 3. d4 {[%clk 0:03:01]}  cxd4 {[%clk 0:02:58]} 4. Nxd4 {[%clk 0:03:02]}  a6 {[%clk 0:02:58]} 5. c4 {[%clk 0:03:02]}  Qc7 {[%clk 0:02:59]} 6. Nc3 {[%clk 0:03:02]}  Nf6 {[%clk 0:02:59]} 7. a3 {[%clk 0:03:02]}  b6 {[%clk 0:02:53]} 8. Be2 {[%clk 0:03:01]}  Bb7 {[%clk 0:02:53]} 9. Qd3 {[%clk 0:03:01]}  d6 {[%clk 0:02:46]} 10. f4 {[%clk 0:03:01]}  Nbd7 {[%clk 0:02:46]} 11. b4 {[%clk 0:03:02]}  Rd8 {[%clk 0:02:45]} 12. O-O {[%clk 0:03:01]}  Nc5 {[%clk 0:02:34]} 13. bxc5 {[%clk 0:02:48]}  dxc5 {[%clk 0:02:33]} 14. Nxe6 {[%clk 0:02:45]}  fxe6 {[%clk 0:02:30]} 15. Qh3 {[%clk 0:02:43]}  Qd7 {[%clk 0:01:44]} 16. Be3 {[%clk 0:02:23]}  Nxe4 {[%clk 0:01:37]} 17. Nxe4 {[%clk 0:02:23]}  Bxe4 {[%clk 0:01:37]} 18. Rad1 {[%clk 0:02:23]}  Bd6 {[%clk 0:01:35]} 19. Bg4 {[%clk 0:02:06]}  Bf5 {[%clk 0:01:26]} 20. Bxf5 {[%clk 0:01:47]}  exf5 {[%clk 0:01:26]} 21. Bf2 {[%clk 0:01:47]}  O-O {[%clk 0:01:17]} 22. Bh4 {[%clk 0:01:47]}  Rde8 {[%clk 0:01:16]} 23. Qd3 {[%clk 0:01:46]}  Re6 {[%clk 0:01:10]} 24. Qd5 {[%clk 0:01:32]}  Qf7 {[%clk 0:01:10]} 25. Rb1 {[%clk 0:01:14]}  Bc7 {[%clk 0:00:57]} 26. a4 {[%clk 0:01:05]}  Re4 {[%clk 0:00:43]} 27. a5 {[%clk 0:01:05]}  Qxd5 {[%clk 0:00:37]} 28. cxd5 {[%clk 0:01:04]}  b5 {[%clk 0:00:37]} 29. Rfd1 {[%clk 0:00:59]}  Bd6 {[%clk 0:00:34]} 30. Rbc1 {[%clk 0:00:49]}  Rfe8 {[%clk 0:00:32]} 31. Bf2 {[%clk 0:00:39]}  c4 {[%clk 0:00:31]} 32. Bb6 {[%clk 0:00:28]}  Bxf4 {[%clk 0:00:18]} 33. Rc2 {[%clk 0:00:23]}  Bd6 {[%clk 0:00:16]} 34. Bf2 {[%clk 0:00:21]}  Kf7 {[%clk 0:00:15]} 35. Bg3 {[%clk 0:00:20]}  Ke7 {[%clk 0:00:14]} 36. Bxd6+ {[%clk 0:00:18]}  Kxd6 {[%clk 0:00:14]} 37. Rf2 {[%clk 0:00:19]}  Re1+ {[%clk 0:00:13]} 38. Rxe1 {[%clk 0:00:19]}  Rxe1+ {[%clk 0:00:13]} 39. Rf1 {[%clk 0:00:19]}  Rxf1+ {[%clk 0:00:13]} 40. Kxf1 {[%clk 0:00:20]} 0-1


[Site "https://www.chess.com"]

[Event "Titled Tuesday Blitz February 28 Late 2023"]
[White "Maximov, Dmitry"]
[Black "Mendez Fortes, Eduardo Jesus"]
[WhiteFideId "14105659"]
[BlackFideId "3502376"]
[WhiteElo "2494"]
[BlackElo "2307"]
[Result "0-1"]
[Round "10"]
[TimeControl "180+2"]
[Date "2023.02.28"]
[WhiteClock "0:00:04"]
[BlackClock "0:00:06"]

1. e4 {[%clk 0:03:00]}  e5 {[%clk 0:02:58]} 2. Nf3 {[%clk 0:03:00]}  Nc6 {[%clk 0:02:51]} 3. Bb5 {[%clk 0:03:00]}  Nf6 {[%clk 0:02:51]} 4. O-O {[%clk 0:02:59]}  Nxe4 {[%clk 0:02:51]} 5. d4 {[%clk 0:02:49]}  Nd6 {[%clk 0:02:51]} 6. a4 {[%clk 0:02:46]}  a6 {[%clk 0:02:41]} 7. dxe5 {[%clk 0:02:38]}  axb5 {[%clk 0:02:38]} 8. exd6 {[%clk 0:02:31]}  Bxd6 {[%clk 0:02:34]} 9. Re1+ {[%clk 0:02:31]}  Be7 {[%clk 0:02:34]} 10. Nc3 {[%clk 0:02:20]}  bxa4 {[%clk 0:02:32]} 11. Nd5 {[%clk 0:02:17]}  O-O {[%clk 0:02:31]} 12. Nxe7+ {[%clk 0:01:49]}  Nxe7 {[%clk 0:02:31]} 13. Bg5 {[%clk 0:01:48]}  f6 {[%clk 0:02:30]} 14. Bf4 {[%clk 0:01:46]}  d5 {[%clk 0:02:27]} 15. c4 {[%clk 0:01:34]}  Ng6 {[%clk 0:02:21]} 16. Bg3 {[%clk 0:01:33]}  dxc4 {[%clk 0:02:16]} 17. Qc2 {[%clk 0:01:34]}  Qd3 {[%clk 0:02:13]} 18. Qc1 {[%clk 0:01:34]}  Bf5 {[%clk 0:02:09]} 19. Ra3 {[%clk 0:01:33]}  Qc2 {[%clk 0:02:07]} 20. Qa1 {[%clk 0:01:31]}  Rfe8 {[%clk 0:01:53]} 21. Rc1 {[%clk 0:01:30]}  Qe2 {[%clk 0:01:51]} 22. Rxa4 {[%clk 0:01:25]}  Rxa4 {[%clk 0:01:50]} 23. Qxa4 {[%clk 0:01:24]}  c6 {[%clk 0:01:38]} 24. Qxc4+ {[%clk 0:01:10]}  Qxc4 {[%clk 0:01:37]} 25. Rxc4 {[%clk 0:01:11]}  Re2 {[%clk 0:01:35]} 26. Rb4 {[%clk 0:01:08]}  b5 {[%clk 0:01:35]} 27. h3 {[%clk 0:01:09]}  Be6 {[%clk 0:01:29]} 28. Nd4 {[%clk 0:01:07]}  Re1+ {[%clk 0:01:25]} 29. Kh2 {[%clk 0:01:07]}  c5 {[%clk 0:01:22]} 30. Nf3 {[%clk 0:01:04]}  cxb4 {[%clk 0:01:12]} 31. Nxe1 {[%clk 0:01:04]}  Ne7 {[%clk 0:01:10]} 32. Bd6 {[%clk 0:00:56]}  Nc6 {[%clk 0:01:09]} 33. Nd3 {[%clk 0:00:50]}  b3 {[%clk 0:01:08]} 34. Kg3 {[%clk 0:00:46]}  Bc4 {[%clk 0:01:07]} 35. Nc5 {[%clk 0:00:44]}  Nd4 {[%clk 0:01:06]} 36. Kf4 {[%clk 0:00:38]}  Kf7 {[%clk 0:01:05]} 37. g4 {[%clk 0:00:36]}  h5 {[%clk 0:00:40]} 38. gxh5 {[%clk 0:00:35]}  Ne2+ {[%clk 0:00:40]} 39. Ke3 {[%clk 0:00:33]}  Nc3 {[%clk 0:00:28]} 40. Kd2 {[%clk 0:00:24]}  Nd5 {[%clk 0:00:25]} 41. h4 {[%clk 0:00:21]}  Kg8 {[%clk 0:00:24]} 42. Bg3 {[%clk 0:00:20]}  Kh7 {[%clk 0:00:23]} 43. Ne6 {[%clk 0:00:15]}  Nb6 {[%clk 0:00:18]} 44. Nf4 {[%clk 0:00:12]}  Na4 {[%clk 0:00:17]} 45. Kc1 {[%clk 0:00:11]}  Nc5 {[%clk 0:00:17]} 46. Kd2 {[%clk 0:00:11]}  Ne4+ {[%clk 0:00:16]} 47. Ke3 {[%clk 0:00:11]}  Nc3 {[%clk 0:00:15]} 48. Kd2 {[%clk 0:00:10]}  Na4 {[%clk 0:00:13]} 49. Kc1 {[%clk 0:00:10]}  Kh6 {[%clk 0:00:13]} 50. f3 {[%clk 0:00:10]}  Nc5 {[%clk 0:00:12]} 51. Bf2 {[%clk 0:00:10]}  Nd7 {[%clk 0:00:12]} 52. Be3 {[%clk 0:00:10]}  Kh7 {[%clk 0:00:11]} 53. Kd2 {[%clk 0:00:10]}  Ne5 {[%clk 0:00:12]} 54. Kc3 {[%clk 0:00:09]}  Nxf3 {[%clk 0:00:11]} 55. Bf2 {[%clk 0:00:09]}  Ne5 {[%clk 0:00:11]} 56. Kb4 {[%clk 0:00:08]}  Ng4 {[%clk 0:00:09]} 57. Be1 {[%clk 0:00:07]}  Ne3 {[%clk 0:00:07]} 58. Bd2 {[%clk 0:00:07]}  Nd1 {[%clk 0:00:07]} 59. Ka3 {[%clk 0:00:06]}  Kg8 {[%clk 0:00:06]} 60. Bc1 {[%clk 0:00:05]}  Nf2 {[%clk 0:00:05]} 61. Kb4 {[%clk 0:00:04]}  Ne4 {[%clk 0:00:05]} 62. Be3 {[%clk 0:00:03]}  Kh7 {[%clk 0:00:04]} 63. Bc1 {[%clk 0:00:03]}  Nd6 {[%clk 0:00:05]} 64. Be3 {[%clk 0:00:03]}  Nf5 {[%clk 0:00:05]} 65. Bf2 {[%clk 0:00:03]}  Kg8 {[%clk 0:00:05]} 66. Kc5 {[%clk 0:00:03]}  Kf7 {[%clk 0:00:05]} 67. Kb4 {[%clk 0:00:03]}  Ke7 {[%clk 0:00:06]} 68. Kc5 {[%clk 0:00:04]}  Kd7 {[%clk 0:00:05]} 69. Kb4 {[%clk 0:00:04]}  Nd6 {[%clk 0:00:05]} 70. Be3 {[%clk 0:00:04]}  Ne4 {[%clk 0:00:05]} 71. Ka5 {[%clk 0:00:04]}  Kd6 {[%clk 0:00:05]} 72. Kb4 {[%clk 0:00:04]}  Ke5 {[%clk 0:00:06]} 73. Ng6+ {[%clk 0:00:04]}  Kf5 {[%clk 0:00:06]} 74. Nf4 {[%clk 0:00:04]}  Kg4 {[%clk 0:00:06]} 75. Ka3 {[%clk 0:00:03]}  Kxh4 {[%clk 0:00:06]} 76. h6 {[%clk 0:00:02]}  gxh6 {[%clk 0:00:05]} 77. Ng6+ {[%clk 0:00:02]}  Kh5 {[%clk 0:00:04]} 78. Nf4+ {[%clk 0:00:02]}  Kg4 {[%clk 0:00:05]} 79. Ng6 {[%clk 0:00:02]}  h5 {[%clk 0:00:05]} 80. Bg1 {[%clk 0:00:01]}  h4 {[%clk 0:00:05]} 81. Ne7 {[%clk 0:00:01]}  h3 {[%clk 0:00:05]} 82. Nc6 {[%clk 0:00:02]}  f5 {[%clk 0:00:05]} 83. Nd4 {[%clk 0:00:02]}  f4 {[%clk 0:00:05]} 84. Kb4 {[%clk 0:00:03]}  f3 {[%clk 0:00:05]} 85. Ka3 {[%clk 0:00:02]}  f2 {[%clk 0:00:06]} 86. Bxf2 {[%clk 0:00:02]}  Nxf2 {[%clk 0:00:05]} 87. Nxb3 {[%clk 0:00:02]}  Bxb3 {[%clk 0:00:04]} 88. Kxb3 {[%clk 0:00:03]}  h2 {[%clk 0:00:04]} 89. Kb4 {[%clk 0:00:04]}  h1=Q {[%clk 0:00:05]} 90. Kxb5 {[%clk 0:00:05]}  Qd5+ {[%clk 0:00:05]} 91. Kb6 {[%clk 0:00:05]}  Nd3 {[%clk 0:00:05]} 92. b3 {[%clk 0:00:05]}  Qc5+ {[%clk 0:00:05]} 93. Ka6 {[%clk 0:00:05]}  Qb4 {[%clk 0:00:05]} 94. Ka7 {[%clk 0:00:04]}  Nc5 {[%clk 0:00:06]} 0-1


[Site "https://www.chess.com"]

[Event "Titled Tuesday Blitz February 28 Late 2023"]
[White "Gadimbayli, Abdulla"]
[Black "Ristic, Nebojsa B"]
[WhiteFideId "13404938"]
[BlackFideId "935468"]
[WhiteElo "2390"]
[BlackElo "2303"]
[Result "1-0"]
[Round "10"]
[TimeControl "180+2"]
[Date "2023.02.28"]
[WhiteClock "0:02:20"]
[BlackClock "0:01:17"]

1. Nf3 {[%clk 0:03:00]}  Nf6 {[%clk 0:02:58]} 2. g3 {[%clk 0:03:01]}  b6 {[%clk 0:02:57]} 3. Bg2 {[%clk 0:03:01]}  Bb7 {[%clk 0:02:58]} 4. O-O {[%clk 0:03:02]}  g6 {[%clk 0:02:56]} 5. d4 {[%clk 0:03:03]}  Bg7 {[%clk 0:02:56]} 6. c4 {[%clk 0:03:03]}  O-O {[%clk 0:02:54]} 7. Nc3 {[%clk 0:03:04]}  Ne4 {[%clk 0:02:54]} 8. Bd2 {[%clk 0:02:57]}  Nxc3 {[%clk 0:02:47]} 9. Bxc3 {[%clk 0:02:57]}  Be4 {[%clk 0:02:46]} 10. Re1 {[%clk 0:02:55]}  d6 {[%clk 0:02:45]} 11. Qd2 {[%clk 0:02:45]}  c5 {[%clk 0:02:44]} 12. d5 {[%clk 0:02:43]}  Nd7 {[%clk 0:02:42]} 13. Bxg7 {[%clk 0:02:42]}  Kxg7 {[%clk 0:02:43]} 14. Qf4 {[%clk 0:02:38]}  Bxf3 {[%clk 0:02:40]} 15. exf3 {[%clk 0:02:38]}  Nf6 {[%clk 0:02:32]} 16. Re2 {[%clk 0:02:35]}  Rb8 {[%clk 0:02:31]} 17. Rae1 {[%clk 0:02:35]}  Rb7 {[%clk 0:02:31]} 18. h4 {[%clk 0:02:34]}  h6 {[%clk 0:02:27]} 19. Bh3 {[%clk 0:02:34]}  b5 {[%clk 0:02:26]} 20. cxb5 {[%clk 0:02:29]}  Nxd5 {[%clk 0:02:24]} 21. Qd2 {[%clk 0:02:21]}  e6 {[%clk 0:02:20]} 22. a4 {[%clk 0:02:21]}  Qf6 {[%clk 0:02:16]} 23. f4 {[%clk 0:02:20]}  Rfb8 {[%clk 0:02:13]} 24. Bg2 {[%clk 0:02:20]}  a6 {[%clk 0:02:12]} 25. Bxd5 {[%clk 0:02:18]}  exd5 {[%clk 0:02:12]} 26. bxa6 {[%clk 0:02:19]}  Rxb2 {[%clk 0:02:12]} 27. Qxd5 {[%clk 0:02:19]}  Rxe2 {[%clk 0:02:09]} 28. Rxe2 {[%clk 0:02:20]}  Qa1+ {[%clk 0:02:08]} 29. Kh2 {[%clk 0:02:21]}  Qxa4 {[%clk 0:02:07]} 30. Re7 {[%clk 0:02:21]}  Qb3 {[%clk 0:01:37]} 31. Rxf7+ {[%clk 0:02:18]}  Kg8 {[%clk 0:01:37]} 32. Qxb3 {[%clk 0:02:18]}  Rxb3 {[%clk 0:01:35]} 33. Rb7 {[%clk 0:02:19]}  Rxb7 {[%clk 0:01:17]} 34. axb7 {[%clk 0:02:20]} 1-0


[Site "https://www.chess.com"]

[Event "Titled Tuesday Blitz February 28 Late 2023"]
[White "Kleinman, Michael"]
[Black "Oro, Faustino"]
[WhiteFideId "2609479"]
[BlackFideId "20000197"]
[WhiteElo "2287"]
[BlackElo "1984"]
[Result "1-0"]
[Round "10"]
[TimeControl "180+2"]
[Date "2023.02.28"]
[WhiteClock "0:00:35"]
[BlackClock "0:00:33"]

1. e4 {[%clk 0:03:00]}  e5 {[%clk 0:02:59]} 2. Nf3 {[%clk 0:02:58]}  Nc6 {[%clk 0:03:00]} 3. Bb5 {[%clk 0:02:58]}  Nf6 {[%clk 0:02:59]} 4. O-O {[%clk 0:02:57]}  Nxe4 {[%clk 0:02:59]} 5. d4 {[%clk 0:02:58]}  Nd6 {[%clk 0:02:59]} 6. Bxc6 {[%clk 0:02:58]}  dxc6 {[%clk 0:03:00]} 7. dxe5 {[%clk 0:02:59]}  Nf5 {[%clk 0:03:01]} 8. Qxd8+ {[%clk 0:02:59]}  Kxd8 {[%clk 0:03:01]} 9. Nc3 {[%clk 0:02:59]}  Be7 {[%clk 0:03:01]} 10. h3 {[%clk 0:02:56]}  Be6 {[%clk 0:02:57]} 11. Bf4 {[%clk 0:02:56]}  Kc8 {[%clk 0:02:53]} 12. Rad1 {[%clk 0:02:56]}  b6 {[%clk 0:02:52]} 13. g4 {[%clk 0:02:51]}  Nh4 {[%clk 0:02:52]} 14. Nxh4 {[%clk 0:02:50]}  Bxh4 {[%clk 0:02:53]} 15. Kg2 {[%clk 0:02:46]}  Kb7 {[%clk 0:02:46]} 16. Bg3 {[%clk 0:02:46]}  Be7 {[%clk 0:02:46]} 17. f4 {[%clk 0:02:43]}  Rad8 {[%clk 0:02:37]} 18. f5 {[%clk 0:02:41]}  Bc4 {[%clk 0:02:36]} 19. Rfe1 {[%clk 0:02:35]}  Bb4 {[%clk 0:02:32]} 20. a3 {[%clk 0:02:00]}  Bc5 {[%clk 0:02:28]} 21. b3 {[%clk 0:01:48]}  Ba6 {[%clk 0:01:57]} 22. Ne4 {[%clk 0:01:31]}  Bxa3 {[%clk 0:01:42]} 23. Ng5 {[%clk 0:01:30]}  f6 {[%clk 0:00:40]} 24. Nf7 {[%clk 0:01:29]}  Rxd1 {[%clk 0:00:39]} 25. Rxd1 {[%clk 0:01:30]}  Re8 {[%clk 0:00:38]} 26. e6 {[%clk 0:00:56]}  Kc8 {[%clk 0:00:36]} 27. Rd7 {[%clk 0:00:48]}  Re7 {[%clk 0:00:34]} 28. Rd8+ {[%clk 0:00:42]}  Kb7 {[%clk 0:00:35]} 29. Rg8 {[%clk 0:00:38]}  g6 {[%clk 0:00:33]} 30. Nd8+ {[%clk 0:00:35]} 1-0


[Site "https://www.chess.com"]